bitfinex/quotes_ETHUSD_20250523
["timestamp","ask_amount","ask_price","bid_price","bid_amount"]
[1747997220564,6.23588965,2660.8,2660.7,3.75838337]
[1747997220803,6.18890447,2660.8,2660.7,18.70238337]
[1747997221125,15.29548114,2660.8,2660.7,29.96038337]
[1747997222609,15.29548114,2660.8,2660.7,3.75838337]
[1747997222832,15.29548114,2660.8,2660.7,29.96138337]
[1747997224387,15.29548114,2660.8,2660.7,3.75838337]
[1747997224739,15.29548114,2660.8,2660.7,29.96138337]
[1747997225593,15.29548114,2660.8,2660.7,29.96238337]
[1747997225792,15.29548114,2660.8,2660.7,29.58678337]
[1747997226494,15.29548114,2660.8,2660.7,3.38278337]
[1747997226694,15.29548114,2660.8,2660.3,16.213]
[1747997226695,3.82858425,2660.4,2660.3,16.213]
[1747997226898,2.18419448,2660.4,2660.3,34.91697455]
[1747997227219,2.1372,2660.6,2660.0,2.91386253]
[1747997227520,0.55,2660.4,2660.3,3.75897455]
[1747997227733,0.55,2660.4,2659.5,4.34740566]
[1747997227940,0.04700742,2660.3,2660.2,3.75911533]
[1747997228088,2.1372,2660.3,2660.2,3.75911533]
[1747997228293,3.41330707,2660.3,2660.2,3.75911533]
[1747997231502,2.86330707,2660.3,2660.2,3.75911533]
[1747997231934,3.41330707,2660.3,2660.2,3.75911533]
[1747997232447,10.67957667,2660.5,2660.4,3.75883325]
[1747997232752,16.67957667,2660.5,2660.4,11.261]
[1747997232899,16.67957667,2660.5,2660.4,15.01983325]
[1747997233238,17.22957667,2660.5,2660.4,15.01983325]
[1747997233437,15.10657667,2660.5,2660.4,15.01983325]
[1747997234327,15.10657667,2660.5,2660.4,16.64743325]
[1747997235542,15.65657667,2660.5,2660.4,15.01983325]
[1747997236244,15.65657667,2660.5,2660.4,46.18383325]
[1747997239115,15.10657667,2660.5,2660.4,46.18383325]
[1747997239443,15.10657667,2660.5,2660.4,47.70503325]
[1747997239845,6.0,2660.5,2660.4,47.70503325]
[1747997240139,8.33715611,2660.8,2660.7,5.37480944]
[1747997242111,2.33715611,2660.8,2660.7,5.37480944]
[1747997245393,1.5031,2662.3,2661.7,1.566]
[1747997245578,7.5031,2662.3,2662.2,3.75629178]
[1747997245764,7.66096767,2662.3,2662.2,3.75629178]
[1747997246074,1.66096767,2662.3,2662.2,3.75629178]
[1747997246382,1.5031,2662.6,2662.5,3.75586854]
[1747997246601,2.0531,2662.6,2662.5,29.95686854]
[1747997246894,1.5031,2662.6,2662.5,29.95686854]
[1747997247381,2.0531,2662.6,2662.5,14.944]
[1747997247577,2.0531,2662.6,2662.5,18.69986854]
[1747997248255,6.0,2663.3,2663.2,3.75488134]
[1747997248478,6.0,2663.4,2663.3,3.75474035]
[1747997248657,6.0,2663.4,2663.3,15.01174035]
[1747997248856,7.5345,2663.4,2663.3,15.01174035]
[1747997249057,9.74860767,2663.4,2663.3,15.01174035]
[1747997250713,9.19860767,2663.4,2663.3,15.01174035]
[1747997250910,6.0,2663.4,2663.3,15.01174035]
[1747997251115,1.5345,2663.7,2663.6,3.75431746]
[1747997251472,16.64107667,2664.1,2663.5,3.75444071]
[1747997251712,16.64107667,2664.1,2664.0,3.75375375]
[1747997252015,8.0845,2664.1,2664.0,29.92475375]
[1747997252176,8.89295,2664.1,2664.0,29.92475375]
[1747997257680,8.89295,2664.1,2664.0,3.75375375]
[1747997257912,8.89295,2664.1,2664.0,29.91075375]
[1747997259205,8.88545,2664.1,2664.0,3.75375375]
[1747997259411,8.88545,2664.1,2664.0,29.91075375]
[1747997259734,0.55,2663.6,2663.4,3.75454922]
[1747997259922,6.80845,2664.1,2663.2,16.211]
[1747997259923,0.55,2663.4,2663.2,16.211]
[1747997260094,2.39133827,2663.3,2663.2,16.211]
[1747997260300,6.55,2663.1,2663.0,19.95506652]
[1747997260501,6.55,2663.1,2663.0,46.11206652]
[1747997260834,8.1368,2663.1,2663.0,46.11206652]
[1747997263135,8.1368,2663.1,2663.0,19.95506652]
[1747997263303,18.99445374,2663.1,2663.0,46.11006652]
[1747997264812,18.44445374,2663.1,2663.0,46.11006652]
[1747997265151,15.10657667,2663.1,2663.0,46.11006652]
[1747997265456,15.10657667,2663.1,2663.0,46.11206652]
[1747997265653,15.65657667,2663.1,2663.0,46.11206652]
[1747997266117,15.65657667,2663.1,2663.0,29.53646652]
[1747997266318,15.65657667,2663.1,2663.0,45.73646652]
[1747997266630,17.24897374,2663.1,2663.0,45.73646652]
[1747997268960,17.24897374,2663.1,2663.0,34.48646652]
[1747997269163,17.24897374,2663.1,2663.0,45.73646652]
[1747997279487,17.24897374,2663.1,2663.0,34.48646652]
[1747997279642,17.24897374,2663.1,2663.0,45.73546652]
[1747997280988,6.0,2663.1,2663.0,47.32136652]
[1747997281346,6.0,2663.6,2663.5,3.75445841]
[1747997281547,6.0,2663.6,2663.5,31.41835841]
[1747997281771,6.55,2663.6,2663.5,31.41835841]
[1747997282279,6.0,2663.6,2663.5,31.41835841]
[1747997283532,7.15,2663.6,2663.5,3.75445841]
[1747997283815,7.15,2663.6,2663.5,29.88545841]
[1747997284893,6.55,2663.6,2663.5,29.88545841]
[1747997285109,6.55,2663.6,2663.5,18.63545841]
[1747997286190,6.55,2663.6,2663.5,29.88445841]
[1747997287736,6.55,2663.6,2663.5,3.75445841]
[1747997288040,6.55,2663.6,2663.5,29.88445841]
[1747997288205,7.36789,2663.6,2663.5,29.88445841]
[1747997289945,6.0,2663.6,2663.5,29.88445841]
[1747997290330,6.55,2663.6,2663.5,29.88445841]
[1747997293626,6.0,2663.6,2663.5,29.88445841]
[1747997295370,5.96962044,2663.6,2663.5,29.88445841]
[1747997298687,9.65657667,2663.9,2663.5,18.63345841]
[1747997298688,0.55,2663.8,2663.5,18.63345841]
[1747997298870,0.55,2663.8,2663.7,3.75417652]
[1747997299902,5.96962044,2663.9,2663.8,3.75403558]
[1747997300063,6.51962044,2663.9,2663.8,3.75403558]
[1747997304174,5.96962044,2664.2,2664.1,3.75361285]
[1747997304373,5.96962044,2664.2,2664.1,34.45563852]
[1747997304979,5.96962044,2664.2,2664.1,34.75983852]
[1747997306621,1.5611,2665.1,2665.0,3.75234521]
[1747997306804,1.5611,2665.1,2665.0,29.87334521]
[1747997307004,2.1111,2665.1,2665.0,29.87334521]
[1747997307209,1.5611,2665.1,2665.0,29.87334521]
[1747997307608,1.5555,2666.2,2665.8,3.7511674]
[1747997307921,3.75056966,2666.3,2665.9,14.876]
[1747997307922,1.5555,2666.0,2665.9,14.876]
[1747997308118,2.06819898,2666.0,2665.9,14.876]
[1747997308317,0.55,2665.9,2665.7,3.75134581]
[1747997308492,0.55,2665.9,2665.8,14.876]
[1747997308819,0.59690133,2665.9,2665.6,11.245]
[1747997309020,0.55,2665.9,2665.6,14.99649029]
[1747997309313,4.30085915,2666.1,2665.6,14.99649029]
[1747997309520,0.55,2665.9,2665.4,11.245]
[1747997309813,0.55,2665.7,2665.5,3.75162578]
[1747997310179,0.55,2665.5,2665.4,3.75171131]
[1747997310824,0.04690575,2665.6,2665.5,3.75164134]
[1747997311022,0.55,2665.9,2665.5,3.75164134]
[1747997311222,2.1055,2665.7,2665.6,3.7514554]
[1747997312424,1.5555,2665.7,2665.6,3.7514554]
[1747997313121,2.1055,2665.7,2665.6,3.7514554]
[1747997315916,2.1055,2665.7,2665.5,3.75156917]
[1747997315917,0.55,2665.6,2665.5,3.75156917]
[1747997316120,0.55,2665.4,2665.3,3.75192286]
[1747997316323,0.5969061,2665.4,2665.3,46.02892286]
[1747997316692,0.55,2665.4,2665.3,46.02892286]
[1747997322419,6.51962044,2665.4,2665.3,46.02892286]
[1747997322837,6.51962044,2665.4,2665.3,46.02792286]
[1747997323039,8.25957515,2665.4,2665.3,19.94192286]
[1747997323257,8.25957515,2665.4,2665.3,46.02692286]
[1747997324631,8.25957515,2665.4,2665.3,19.94192286]
[1747997325107,8.25957515,2665.4,2665.3,46.02592286]
[1747997326249,8.25957515,2665.4,2665.3,19.94192286]
[1747997326454,8.25957515,2665.4,2665.3,46.02592286]
[1747997326615,8.25957515,2665.4,2665.3,19.94192286]
[1747997326966,9.84767515,2665.4,2665.3,42.274]
[1747997327255,9.84767515,2665.4,2665.3,46.02592286]
[1747997328265,14.64552144,2665.4,2665.3,31.031]
[1747997328668,15.19552144,2665.4,2665.3,34.78292286]
[1747997329373,15.19552144,2665.4,2665.3,46.02392286]
[1747997329678,11.31746673,2665.4,2665.3,46.02392286]
[1747997330053,11.86746673,2665.4,2665.3,46.02392286]
[1747997330256,11.31746673,2665.4,2665.3,46.02392286]
[1747997330446,2.21089006,2665.4,2665.3,46.36542286]
[1747997332452,2.76089006,2665.4,2665.3,46.36542286]
[1747997332873,0.55,2665.4,2665.3,46.36542286]
[1747997333365,0.55,2665.4,2665.1,3.75220442]
[1747997333566,0.55,2665.3,2665.2,3.75206363]
[1747997334070,0.55,2665.6,2665.5,3.75164134]
[1747997334552,0.55,2665.6,2665.5,14.99264134]
[1747997336230,0.55,2665.6,2665.5,46.02164134]
[1747997337992,0.55,2666.4,2666.3,3.75051569]
[1747997338275,0.55,2666.4,2666.3,29.83251569]
[1747997339071,0.55,2666.2,2666.1,3.75079704]
[1747997339362,0.59689258,2666.2,2666.1,29.83179704]
[1747997339939,0.59689258,2666.2,2666.1,29.80179704]
[1747997340138,0.81333184,2666.2,2666.1,26.051]
[1747997340353,2.34013184,2666.2,2666.1,26.051]
[1747997340650,2.0768,2666.1,2666.0,14.99092956]
[1747997340970,2.0768,2666.1,2666.0,29.80192956]
[1747997341174,0.55,2666.0,2665.7,3.75127379]
[1747997341395,0.59689976,2665.9,2665.8,18.56215164]
[1747997341594,2.12369976,2665.9,2665.8,18.56215164]
[1747997341735,2.12369976,2665.9,2665.7,14.99127379]
[1747997341736,2.0768,2665.8,2665.7,14.99131214]
[1747997341936,2.0768,2665.8,2665.7,29.80131214]
[1747997344553,2.0768,2665.8,2665.7,14.81]
[1747997345153,2.0768,2665.8,2665.7,18.56135986]
[1747997345349,0.55,2665.6,2665.5,19.93863115]
[1747997345649,13.27036352,2665.6,2665.5,34.74963115]
[1747997346255,13.27036352,2665.6,2665.5,3.75163115]
[1747997346447,0.55,2664.7,2664.3,14.811]
[1747997346680,2.76089006,2664.6,2664.5,3.75304935]
[1747997351672,11.86746673,2664.6,2664.5,3.75304935]
[1747997354887,11.86746673,2664.6,2664.5,14.99604935]
[1747997356697,12.76746673,2664.6,2664.5,14.99604935]
[1747997357029,14.2103934,2664.6,2664.5,14.99604935]
[1747997376319,12.76746673,2664.6,2664.5,14.99604935]
[1747997376703,11.86746673,2664.6,2664.5,14.99604935]
[1747997377010,0.55,2664.5,2664.2,3.27439803]
[1747997377222,0.55,2664.5,2664.3,14.791]
[1747997377647,0.55,2664.5,2664.4,3.75319021]
[1747997378153,0.55,2664.5,2664.4,14.99719021]
[1747997380392,1.73674667,2664.5,2664.4,14.99719021]
[1747997381299,3.94763673,2664.5,2664.4,14.99719021]
[1747997386407,3.94763673,2664.5,2664.4,3.75319021]
[1747997386565,3.94763673,2664.5,2664.4,14.99719021]
[1747997387064,4.84763673,2664.5,2664.4,14.99719021]
[1747997388000,3.66089006,2664.5,2664.4,31.18919021]
[1747997388190,2.76089006,2664.5,2664.4,31.18919021]
[1747997388591,2.21089006,2664.5,2664.4,31.35329021]
[1747997389204,2.76089006,2664.5,2664.4,31.35329021]
[1747997389799,2.76089006,2664.5,2664.4,45.97919021]
[1747997390003,4.11059673,2664.5,2664.4,45.97919021]
[1747997391794,4.11059673,2664.5,2664.4,45.92919021]
[1747997392999,5.01059673,2664.5,2664.4,45.92919021]
[1747997393505,5.01059673,2664.5,2664.4,34.68519021]
[1747997393824,15.6843734,2664.5,2664.4,30.982]
[1747997393980,14.33466673,2664.5,2664.4,42.226]
[1747997394396,14.33466673,2664.5,2664.4,45.97919021]
[1747997394746,12.76746673,2664.5,2664.4,45.97919021]
[1747997395026,12.76746673,2664.5,2664.4,19.94519021]
[1747997395211,15.6465134,2664.5,2664.4,34.73519021]
[1747997395530,15.6465134,2664.5,2664.4,45.97919021]
[1747997397734,15.6465134,2664.5,2664.4,30.982]
[1747997397939,15.6465134,2664.5,2664.4,16.192]
[1747997398096,15.6465134,2664.5,2664.4,42.226]
[1747997401938,15.6465134,2664.5,2664.4,14.761]
[1747997401939,13.43562334,2664.5,2664.4,14.761]
[1747997403022,13.43562334,2664.5,2664.4,26.006]
[1747997403647,13.43562334,2664.5,2664.4,29.75919021]
[1747997403815,0.55,2664.4,2664.2,3.75347196]
[1747997404156,9.10657667,2664.5,2664.4,3.75319021]
[1747997404532,9.65657667,2664.5,2664.4,3.91729021]
[1747997404854,10.07223434,2664.5,2664.4,3.75319021]
[1747997405149,10.62223434,2664.5,2664.4,14.99819021]
[1747997406356,10.62223434,2664.5,2664.4,45.95219021]
[1747997406653,9.65657667,2664.5,2664.4,45.95219021]
[1747997406955,10.55657667,2664.5,2664.4,45.95219021]
[1747997408232,16.55657667,2664.5,2664.4,45.95219021]
[1747997409763,7.45,2664.5,2664.4,46.11629021]
[1747997409931,6.9,2664.5,2664.4,46.11629021]
[1747997410129,6.0,2664.9,2664.8,3.75262683]
[1747997410329,6.0,2664.9,2664.8,18.67772683]
[1747997411223,6.55,2664.9,2664.8,18.67772683]
[1747997412413,6.55,2664.9,2664.8,3.75262683]
[1747997412619,6.55,2664.9,2664.8,29.75662683]
[1747997415159,6.55,2664.9,2664.8,29.92072683]
[1747997415365,6.55,2664.9,2664.8,18.51162683]
[1747997416455,6.55,2664.9,2664.8,29.75462683]
[1747997418670,6.55,2664.9,2664.8,3.75262683]
[1747997418843,6.55,2664.9,2664.8,29.75462683]
[1747997421467,6.55,2664.9,2664.8,18.51162683]
[1747997421941,6.55,2664.9,2664.8,29.75462683]
[1747997422488,8.7625,2664.9,2664.8,3.75262683]
[1747997422664,7.205,2664.9,2664.8,29.75362683]
[1747997423837,7.205,2664.9,2664.8,18.51062683]
[1747997424034,8.7625,2664.9,2664.8,26.0]
[1747997424288,17.86907667,2664.9,2664.8,26.0]
[1747997424580,0.55,2664.8,2664.7,3.75270553]
[1747997424874,2.33690767,2664.8,2664.7,29.75270553]
[1747997425072,2.33690767,2664.8,2664.7,26.0]
[1747997425246,2.33690767,2664.8,2664.7,29.75276766]
[1747997426156,2.33690767,2664.8,2664.7,14.759]
[1747997426353,2.33690767,2664.8,2664.7,18.51176766]
[1747997426554,2.33690767,2664.8,2664.7,14.759]
[1747997426758,3.88910767,2664.8,2664.7,18.51176766]
[1747997427383,3.88910767,2664.8,2664.7,29.75476766]
[1747997428259,18.99568434,2664.8,2664.7,29.75476766]
[1747997431775,19.89568434,2664.8,2664.7,29.75476766]
[1747997432204,18.99568434,2664.8,2664.7,29.75476766]
[1747997434182,17.44348434,2664.8,2664.4,16.193]
[1747997434491,2.1849,2664.6,2664.5,25.975]
[1747997435349,2.1849,2664.6,2664.5,29.72804935]
[1747997436661,3.0849,2664.6,2664.5,29.72804935]
[1747997440115,18.19147667,2664.6,2664.5,29.72804935]
[1747997441371,16.55657667,2664.6,2664.5,29.72804935]
[1747997441797,16.00657667,2664.6,2664.5,29.72804935]
[1747997442110,16.00657667,2664.6,2664.5,33.47807279]
[1747997442300,16.55657667,2664.6,2664.5,29.72804935]
[1747997442610,6.9,2664.6,2664.5,29.72804935]
[1747997442823,6.0,2664.6,2664.5,29.72804935]
[1747997443030,6.55,2664.6,2664.5,29.72804935]
[1747997449529,6.0,2664.6,2664.5,29.72804935]
[1747997449700,6.0,2664.6,2664.5,33.47807279]
[1747997451521,6.0,2664.6,2664.5,14.79747263]
[1747997451813,6.0,2664.6,2664.5,18.55052198]
[1747997452117,6.55,2664.9,2664.8,3.75262683]
[1747997452524,8.74890366,2667.5,2664.8,3.75262683]
[1747997452525,6.0,2665.4,2665.3,3.75192286]
[1747997452681,6.0,2665.7,2665.6,3.7515006]
[1747997452882,7.66616767,2665.7,2665.6,3.7515006]
[1747997453083,8.21616767,2665.7,2665.6,3.7515006]
[1747997456092,6.0,2665.7,2665.6,3.7515006]
[1747997456288,6.0,2665.9,2665.8,3.75121914]
[1747997456531,6.0,2665.9,2665.8,29.72221914]
[1747997457293,6.0,2666.5,2665.8,29.72221914]
[1747997457501,9.10657667,2667.1,2666.7,3.74995312]
[1747997457502,6.0,2666.8,2666.7,3.74995312]
[1747997457691,6.0,2667.0,2666.9,3.7496719]
[1747997458199,0.91065767,2667.1,2667.0,3.7495313]
[1747997458497,0.04686907,2667.4,2667.2,3.74915308]
[1747997458721,1.56116906,2667.5,2667.3,3.74910718]
[1747997459221,1.5143,2667.5,2667.4,3.74896903]
[1747997459767,1.5143,2667.5,2667.3,3.74909636]
[1747997459941,1.5143,2667.5,2667.1,3.74928349]
[1747997460095,1.6118,2667.3,2667.0,29.72047938]
[1747997460438,0.55,2667.2,2667.1,29.71439072]
[1747997461010,0.55,2667.2,2667.1,29.68839072]
[1747997461225,0.55,2667.2,2667.1,25.939]
[1747997461400,0.55,2667.2,2667.1,29.68839072]
[1747997461602,0.76618,2667.2,2667.1,29.68839072]
[1747997462637,0.76618,2667.2,2667.1,25.939]
[1747997462824,0.55,2667.0,2666.8,3.74972483]
[1747997463000,0.55,2667.0,2666.9,25.934]
[1747997463201,0.78699552,2667.0,2666.9,25.934]
[1747997463401,0.78699552,2667.0,2666.9,29.6836719]
[1747997464973,5.89360554,2667.7,2667.2,3.74911764]
[1747997465354,0.55,2667.5,2667.1,3.74934211]
[1747997465657,0.55,2667.3,2667.2,25.932]
[1747997466169,0.55,2667.3,2667.2,29.68125014]
[1747997466672,0.55,2667.3,2667.2,14.695]
[1747997466840,0.55,2667.3,2667.2,18.44425014]
[1747997467046,0.7645,2667.3,2667.2,18.44425014]
[1747997467258,0.55,2667.5,2667.4,3.74896903]
[1747997467782,1.595,2667.6,2667.5,3.74882849]
[1747997468269,2.145,2667.6,2667.5,3.74882849]
[1747997468832,1.595,2667.6,2667.5,3.74882849]
[1747997469234,2.145,2667.6,2667.5,3.74882849]
[1747997469450,0.55,2667.6,2667.5,3.74882849]
[1747997469778,0.76019,2667.6,2667.5,3.74882849]
[1747997469947,0.55,2667.5,2667.4,14.98490316]
[1747997470273,0.21019,2667.6,2667.5,3.74882849]
[1747997470632,0.21019,2667.6,2667.5,29.67882849]
[1747997471536,0.55,2667.7,2667.6,3.74868795]
[1747997471843,0.55,2667.9,2667.8,3.74840692]
[1747997473862,15.65657667,2667.9,2667.8,3.74840692]
[1747997475484,15.65657667,2667.9,2667.8,25.925]
[1747997476064,15.65657667,2667.9,2667.8,29.67340692]
[1747997476397,15.10657667,2667.9,2667.8,29.67340692]
[1747997477295,15.65657667,2667.9,2667.8,29.67340692]
[1747997477639,15.65657667,2667.9,2667.8,29.67140692]
[1747997480870,15.10657667,2667.9,2667.8,29.67140692]
[1747997481403,15.65657667,2667.9,2667.8,29.67140692]
[1747997483904,0.55,2667.9,2667.8,29.67140692]
[1747997484111,0.55,2667.9,2667.8,3.74840692]
[1747997484300,0.55,2667.9,2667.8,29.66840692]
[1747997485004,0.55,2668.7,2667.9,0.6806]
[1747997485209,3.7460506,2669.5,2667.9,0.6806]
[1747997485211,1.5821,2670.2,2668.1,1.84742088]
[1747997485415,0.44550477,2670.3,2668.3,3.74770453]
[1747997485416,3.7458923,2669.6,2668.3,3.74770453]
[1747997485576,1.6284,2669.5,2669.2,3.74636926]
[1747997485762,1.67523148,2669.5,2669.3,25.917]
[1747997485958,1.6284,2669.5,2669.4,25.917]
[1747997486400,1.6284,2669.5,2669.1,16.172]
[1747997486603,1.6284,2669.5,2669.1,19.91857553]
[1747997486805,1.5788,2669.4,2669.1,16.172]
[1747997487107,0.55,2669.3,2669.2,14.687]
[1747997487279,0.76288,2669.3,2669.2,14.687]
[1747997487476,2.1288,2669.2,2669.1,16.172]
[1747997487675,2.1288,2669.2,2669.1,45.8355555]
[1747997488207,2.1288,2669.2,2669.1,16.172]
[1747997488423,2.1288,2669.2,2669.1,42.089]
[1747997489004,2.1445,2668.8,2668.5,16.17]
[1747997489210,2.0587,2668.7,2668.6,14.685]
[1747997489631,0.55,2668.6,2668.5,31.14734772]
[1747997489767,0.55,2668.6,2668.5,45.83234772]
[1747997490706,5.80598321,2668.6,2668.5,16.17]
[1747997490905,2.0587,2668.6,2668.5,16.17]
[1747997491077,2.63929832,2668.6,2668.5,16.17]
[1747997491276,6.38658153,2668.6,2668.5,16.17]
[1747997492076,2.63929832,2668.6,2668.5,16.17]
[1747997493122,1.5087,2668.6,2668.5,19.91742364]
[1747997493292,1.5266,2668.9,2668.8,3.74700239]
[1747997493470,1.5266,2668.9,2668.8,26.77600239]
[1747997494372,1.6421,2669.8,2668.8,23.029]
[1747997494571,1.6421,2669.5,2669.1,3.74652962]
[1747997494903,2.1921,2669.3,2669.0,3.74666788]
[1747997495411,2.1921,2669.3,2669.0,3.74665041]
[1747997495595,2.1921,2669.3,2669.0,3.74664419]
[1747997495792,2.1921,2669.3,2668.9,18.8087974]
[1747997495991,2.1921,2669.3,2669.0,15.062]
[1747997496310,0.55,2669.1,2669.0,15.062]
[1747997496695,0.55,2669.1,2669.0,18.80872161]
[1747997497105,0.55,2669.2,2669.0,18.80872161]
[1747997497605,0.55,2669.2,2669.0,15.062]
[1747997497809,0.55,2669.2,2668.7,11.228]
[1747997497810,0.55,2668.8,2668.7,11.228]
[1747997497987,0.55,2668.6,2668.5,27.398]
[1747997498180,0.55,2668.6,2668.5,46.20642364]
[1747997498409,0.55,2668.6,2668.5,24.27]
[1747997498613,5.90258321,2668.6,2668.5,16.17]
[1747997498811,17.13631348,2668.6,2668.5,31.231]
[1747997499113,13.38903027,2668.6,2668.5,31.231]
[1747997502833,13.38903027,2668.6,2668.5,34.97842364]
[1747997503635,11.78373027,2668.6,2668.5,34.97842364]
[1747997505026,17.78373027,2668.6,2668.5,34.97842364]
[1747997505446,17.78373027,2668.6,2668.5,43.07842364]
[1747997505757,17.78373027,2668.6,2668.5,34.97842364]
[1747997508453,21.53101348,2668.6,2668.5,31.231]
[1747997508600,23.05061348,2668.6,2668.5,42.46]
[1747997508801,23.05061348,2668.6,2668.5,31.232]
[1747997509001,2.0696,2668.4,2668.0,3.74810881]
[1747997509218,0.55,2668.2,2668.1,26.291]
[1747997513744,0.55,2668.2,2668.1,30.03898545]
[1747997513923,11.90859122,2668.2,2668.0,3.74812397]
[1747997514123,11.90859122,2668.2,2668.1,3.74798545]
[1747997514435,13.30958137,2668.2,2668.1,3.74798545]
[1747997515044,13.30958137,2668.2,2668.1,14.97798545]
[1747997515222,13.30958137,2668.2,2668.1,11.23]
[1747997515424,13.30958137,2668.2,2668.1,14.97798545]
[1747997516335,13.30958137,2668.2,2668.1,30.04098545]
[1747997519256,13.30958137,2668.2,2668.1,15.063]
[1747997519554,13.30958137,2668.2,2668.1,18.81098545]
[1747997520455,14.20958137,2668.2,2668.1,30.04098545]
[1747997521225,14.20958137,2668.2,2668.1,26.293]
[1747997521776,14.20958137,2668.2,2668.1,30.04098545]
[1747997523056,15.71498137,2668.2,2666.9,3.74961479]
[1747997523242,0.55,2668.0,2667.9,3.74826642]
[1747997523562,0.55,2668.0,2667.9,29.77626642]
[1747997526254,0.55,2668.0,2667.9,45.94826642]
[1747997527074,0.55,2668.0,2667.9,16.172]
[1747997527305,0.55,2668.0,2667.9,42.2]
[1747997527306,2.36886,2668.0,2667.9,42.2]
[1747997528162,6.11698593,2668.0,2667.9,16.172]
[1747997528387,6.11698593,2668.0,2667.6,3.74868795]
[1747997528388,0.55,2667.7,2667.6,3.74868795]
[1747997528537,0.55,2667.7,2667.6,29.77668795]
[1747997529908,1.205,2667.7,2667.6,26.028]
[1747997530056,22.63915339,2667.7,2667.5,16.172]
[1747997530380,3.74868795,2667.6,2667.5,16.172]
[1747997530550,0.55,2667.5,2667.2,14.798]
[1747997530937,0.55,2667.5,2667.3,3.74901564]
[1747997531150,0.55,2667.3,2667.2,18.54719775]
[1747997531357,0.55,2667.3,2667.2,29.77819775]
[1747997531887,0.55,2667.3,2667.2,26.029]
[1747997532091,0.55,2667.3,2667.2,29.77825014]
[1747997532284,0.55,2667.3,2667.2,26.029]
[1747997532462,0.77598685,2667.3,2667.2,26.029]
[1747997533159,0.77598685,2667.3,2667.2,29.77825014]
[1747997534502,16.85598685,2667.3,2667.2,29.77825014]
[1747997536977,16.30598685,2667.3,2667.2,29.77825014]
[1747997537177,16.63,2667.3,2667.2,29.77825014]
[1747997544639,16.63,2667.3,2667.2,26.031]
[1747997544784,18.2916,2667.3,2667.2,26.031]
[1747997545192,18.2916,2667.3,2667.2,14.798]
[1747997545410,18.2916,2667.3,2667.2,26.031]
[1747997545628,20.66194964,2667.3,2667.2,14.801]
[1747997546821,20.66194964,2667.3,2667.2,26.034]
[1747997547018,0.55,2667.2,2667.1,3.7493566]
[1747997547222,0.55,2667.2,2667.1,29.7843566]
[1747997548014,0.55,2667.2,2667.1,26.035]
[1747997548339,2.45003496,2667.2,2667.1,26.035]
[1747997549014,2.45003496,2667.2,2667.1,29.78439072]
[1747997549782,0.55,2667.2,2667.1,29.78439072]
[1747997550252,16.08,2667.3,2667.2,3.74925014]
[1747997550610,16.63,2667.3,2667.2,3.74925014]
[1747997552253,17.53,2667.3,2667.2,3.74925014]
[1747997552417,4.29925014,2667.2,2667.1,14.802]
[1747997552618,22.17911961,2667.2,2667.1,14.802]
[1747997552812,1.6642,2666.8,2666.4,3.75035307]
[1747997553055,1.6642,2666.8,2666.4,14.693]
[1747997553056,0.55,2666.6,2666.4,14.693]
[1747997553239,5.41407707,2666.8,2666.4,14.693]
[1747997553240,16.63,2666.5,2666.4,14.693]
[1747997553445,17.34618507,2666.5,2666.4,18.44337503]
[1747997554657,17.34618507,2666.5,2666.4,29.67637503]
[1747997554832,16.63,2666.5,2666.4,29.67637503]
[1747997557024,16.08,2666.5,2666.4,29.67637503]
[1747997557224,16.63,2666.5,2666.4,29.67637503]
[1747997557530,16.63,2666.5,2666.4,31.87637503]
[1747997560002,6.0,2666.5,2666.4,31.87637503]
[1747997560267,6.55,2666.5,2666.4,31.87637503]
[1747997565798,6.0,2666.5,2666.4,31.87637503]
[1747997566778,6.0,2667.0,2666.9,3.7496719]
[1747997566975,6.0,2667.0,2666.9,29.6796719]
[1747997567206,6.55,2667.0,2666.9,29.6796719]
[1747997567352,6.55,2667.0,2666.9,31.8796719]
[1747997568049,6.55,2667.0,2666.9,20.6446719]
[1747997568288,6.55,2667.0,2666.9,31.8796719]
[1747997579599,6.55,2667.0,2666.9,20.6446719]
[1747997579901,6.55,2667.0,2666.9,31.8786719]
[1747997581603,0.55,2667.4,2667.2,3.74925014]
[1747997581902,6.55,2667.4,2667.3,31.15908247]
[1747997582406,6.55,2667.4,2667.3,33.35908247]
[1747997582833,6.0,2667.4,2667.3,33.35908247]
[1747997583193,6.55,2667.4,2667.3,33.35908247]
[1747997583653,6.0,2667.4,2667.3,33.35908247]
[1747997583858,6.55,2667.4,2667.3,33.35908247]
[1747997583996,6.55,2667.4,2667.3,48.04608247]
[1747997584934,6.55,2667.4,2667.3,22.12508247]
[1747997585138,8.1346,2667.4,2667.3,45.84508247]
[1747997585341,8.7896,2667.4,2667.3,45.84508247]
[1747997586047,9.6896,2667.4,2667.3,45.84508247]
[1747997586250,7.45,2667.4,2667.3,45.84508247]
[1747997586933,7.45,2667.4,2667.3,48.04508247]
[1747997589251,7.45,2667.4,2667.3,45.84508247]
[1747997590842,6.0,2667.4,2667.3,45.84508247]
[1747997591374,6.55,2667.4,2667.3,45.84508247]
[1747997593518,6.55,2667.4,2667.3,48.04508247]
[1747997604609,6.0,2667.4,2667.3,48.04508247]
[1747997604809,6.0,2667.4,2667.3,48.61616488]
[1747997604970,6.0,2667.4,2667.3,49.0556881]
[1747997606796,3.7462586,2669.4,2667.3,49.0556881]
[1747997606797,6.0,2668.1,2668.0,3.74812593]
[1747997607001,10.08,2668.8,2668.7,3.7471428]
[1747997607210,6.0,2668.8,2668.7,45.8361428]
[1747997607534,6.0,2668.8,2668.7,48.0361428]
[1747997608405,6.55,2668.8,2668.7,48.0361428]
[1747997608924,6.0,2668.8,2668.7,48.0361428]
[1747997609109,6.55,2668.8,2668.7,48.0361428]
[1747997612452,6.55,2668.8,2668.7,48.47972748]
[1747997613325,6.55,2668.8,2668.7,48.0361428]
[1747997614021,8.1426,2668.8,2668.7,42.071]
[1747997614223,18.2226,2668.8,2668.7,42.071]